fUSD/lending_fUSD_20260518
["ID","MTS","AMOUNT","RATE_DAILY","PERIOD"]
[422555384,1779070241000,-150.0,0.00014344,2]
[422555368,1779070241000,-151.0,0.0001417,2]
[422555370,1779070241000,-150.0,0.00014216,2]
[422555367,1779070241000,-3257.13808,0.0001417,2]
[422555366,1779070241000,-3563.9249618,0.0001417,2]
[422555369,1779070241000,-150.0,0.00014173,2]
[422555382,1779070241000,-150.0,0.00014344,2]
[422555374,1779070241000,-150.0,0.00014237,2]
[422555378,1779070241000,-166.66,0.00014274,2]
[422555390,1779070241000,-150.0,0.00014424,2]
[422555377,1779070241000,-150.0,0.00014258,2]
[422555383,1779070241000,-150.0,0.00014344,2]
[422555381,1779070241000,-226.359919,0.00014338,2]
[422555387,1779070241000,-150.0,0.00014362,2]
[422555398,1779070241000,-3988.53229161,0.00014496,2]
[422555386,1779070241000,-3988.53229161,0.00014361,2]
[422555389,1779070241000,-150.0,0.00014387,2]
[422555388,1779070241000,-279.89,0.00014364,2]
[422555395,1779070241000,-150.0,0.00014472,2]
[422555393,1779070241000,-291.792083,0.00014442,2]
[422555365,1779070241000,-80250.6983172,0.0001417,2]
[422555399,1779070241000,-150.0,0.00014515,2]
[422555396,1779070241000,-150.0,0.00014487,2]
[422555392,1779070241000,-6287.95260603,0.00014439,2]
[422555379,1779070241000,-150.0,0.00014301,2]
[422555364,1779070241000,-441511.4598801,0.0001417,2]
[422555353,1779070241000,-500.0,0.00014169,2]
[422555363,1779070241000,-9248.4339359,0.0001417,2]
[422555397,1779070241000,-150.0,0.00014487,2]
[422555342,1779070241000,-500.0,0.00013771,2]
[422555336,1779070241000,-500.0,0.00013771,2]
[422555339,1779070241000,-500.0,0.00013771,2]
[422555343,1779070241000,-500.0,0.00013771,2]
[422555338,1779070241000,-500.0,0.00013771,2]
[422555346,1779070241000,-500.0,0.00013771,2]
[422555345,1779070241000,-500.0,0.00013771,2]
[422555337,1779070241000,-500.0,0.00013771,2]
[422555340,1779070241000,-500.0,0.00013771,2]
[422555341,1779070241000,-500.0,0.00013771,2]
[422555344,1779070241000,-500.0,0.00013771,2]
[422555347,1779070241000,-500.0,0.00013771,2]
[422555349,1779070241000,-500.0,0.00013771,2]
[422555359,1779070241000,-500.0,0.00014169,2]
[422555360,1779070241000,-500.0,0.00014169,2]
[422555350,1779070241000,-500.0,0.00013771,2]
[422555348,1779070241000,-500.0,0.00013771,2]
[422555352,1779070241000,-19901.677,0.00013872,2]
[422555351,1779070241000,-500.0,0.00013771,2]
[422555355,1779070241000,-527.20028817,0.00014169,2]
[422555354,1779070241000,-500.0,0.00014169,2]
[422555356,1779070241000,-500.0,0.00014169,2]
[422555358,1779070241000,-500.0,0.00014169,2]
[422555357,1779070241000,-500.0,0.00014169,2]
[422555362,1779070241000,-6592.8578054,0.0001417,2]
[422555371,1779070241000,-3988.53229161,0.00014226,2]
[422555373,1779070241000,-150.0,0.00014237,2]
[422555372,1779070241000,-150.0,0.00014237,2]
[422555361,1779070241000,-500.0,0.00014169,2]
[422555391,1779070241000,-150.0,0.0001443,2]
[422555418,1779070241000,-500.0,0.00014719,2]
[422555401,1779070241000,-2000.0,0.00014542,2]
[422555433,1779070241000,-150.0,0.00014772,2]
[422555431,1779070241000,-3988.53229161,0.00014765,2]
[422555429,1779070241000,-150.0,0.00014737,2]
[422555434,1779070241000,-150.0,0.00014772,2]
[422555438,1779070241000,-150.0,0.00014815,2]
[422555441,1779070241000,-802.84066,0.0001485,2]
[422555440,1779070241000,-802.84066,0.0001485,2]
[422555442,1779070241000,-150.0,0.00014858,2]
[422555444,1779070241000,-150.0,0.00014861,2]
[422555450,1779070241000,-1090.90806426,0.000149,2]
[422555445,1779070241000,-224.76457235,0.00014866,2]
[422555443,1779070241000,-802.84066,0.0001486,2]
[422555394,1779070241000,-166.66,0.00014466,2]
[422555447,1779070241000,-641.21721473,0.00014881,2]
[422555439,1779070241000,-1680.0,0.00014835,2]
[422555446,1779070241000,-200.0,0.0001488,2]
[422555448,1779070241000,-500.0,0.00014899,2]
[422555451,1779070241000,-204.13807498,0.000149,2]
[422555453,1779070241000,-6287.95260603,0.000149,2]
[422555452,1779070241000,-7780.0171983,0.000149,2]
[422555454,1779070241000,-598.78585882,0.000149,2]
[422555459,1779070241000,-2429.81034253,0.000149,2]
[422555457,1779070241000,-5743.95067356,0.000149,2]
[422555455,1779070241000,-1090.90806426,0.000149,2]
[422555460,1779070241000,-1574.94069742,0.000149,2]
[422555461,1779070241000,-3988.53229161,0.000149,2]
[422555462,1779070241000,-150.0,0.00014901,2]
[422555456,1779070241000,-274.499836,0.000149,2]
[422555458,1779070241000,-151.0,0.000149,2]
[422555435,1779070241000,-150.0,0.00014799,2]
[422555432,1779070241000,-150.0,0.00014772,2]
[422555449,1779070241000,-1090.90806427,0.00014899,2]
[422555430,1779070241000,-150.0,0.00014737,2]
[422555428,1779070241000,-372.8454024,0.00014729,2]
[422555402,1779070241000,-150.0,0.00014558,2]
[422555400,1779070241000,-6287.95260603,0.00014531,2]
[422555404,1779070241000,-150.0,0.00014558,2]
[422555405,1779070241000,-150.0,0.00014601,2]
[422555406,1779070241000,-150.0,0.00014612,2]
[422555403,1779070241000,-150.0,0.00014558,2]
[422555410,1779070241000,-6287.95260603,0.00014623,2]
[422555411,1779070241000,-3988.53229161,0.0001463,2]
[422555407,1779070241000,-150.0,0.00014612,2]
[422555409,1779070241000,-164.2,0.00014616,2]
[422555413,1779070241000,-166.66,0.00014658,2]
[422555412,1779070241000,-150.0,0.00014644,2]
[422555415,1779070241000,-279.89,0.00014698,2]
[422555408,1779070241000,-150.0,0.00014612,2]
[422555423,1779070241000,-500.0,0.00014719,2]
[422555436,1779070241000,-6287.95260603,0.00014808,2]
[422555414,1779070241000,-150.0,0.00014687,2]
[422555437,1779070241000,-463.39880093,0.0001481,2]
[422555427,1779070241000,-150.0,0.00014729,2]
[422555425,1779070241000,-174.997,0.00014725,2]
[422555421,1779070241000,-500.0,0.00014719,2]
[422555426,1779070241000,-2712.623,0.00014725,2]
[422555422,1779070241000,-500.0,0.00014719,2]
[422555424,1779070241000,-372.71448129,0.00014719,2]
[422555416,1779070241000,-6287.95260603,0.00014716,2]
[422555419,1779070241000,-382.44468736,0.00014719,2]
[422555417,1779070241000,-500.0,0.00014719,2]
[422555420,1779070241000,-243.05671705,0.00014719,2]
[422555483,1779070242000,-650.81,0.00014999,2]
[422555491,1779070242000,-650.81,0.00014999,2]
[422555478,1779070242000,-1020.67010647,0.0001499,2]
[422555484,1779070242000,-650.81,0.00014999,2]
[422555480,1779070242000,-151.0,0.00014997,2]
[422555481,1779070242000,-524.60272741,0.00014999,2]
[422555493,1779070242000,-650.81,0.00014999,2]
[422555485,1779070242000,-650.81,0.00014999,2]
[422555486,1779070242000,-650.81,0.00014999,2]
[422555487,1779070242000,-650.81,0.00014999,2]
[422555463,1779070242000,-323.0,0.00014908,2]
[422555492,1779070242000,-650.81,0.00014999,2]
[422555482,1779070242000,-650.81,0.00014999,2]
[422555490,1779070242000,-650.81,0.00014999,2]
[422555476,1779070242000,-1020.67010647,0.0001499,2]
[422555479,1779070242000,-255.0,0.00014994,2]
[422555474,1779070242000,-615.0,0.00014986,2]
[422555473,1779070242000,-238.4256849,0.00014986,2]
[422555475,1779070242000,-209.41407081,0.00014986,2]
[422555471,1779070242000,-195.89677126,0.00014986,2]
[422555467,1779070242000,-162.14416279,0.00014986,2]
[422555468,1779070242000,-180.7860048,0.00014986,2]
[422555469,1779070242000,-151.97072843,0.00014986,2]
[422555477,1779070242000,-1020.67010647,0.0001499,2]
[422555465,1779070242000,-501.57558027,0.00014983,2]
[422555470,1779070242000,-152.40746603,0.00014986,2]
[422555466,1779070242000,-567.58,0.00014985,2]
[422555464,1779070242000,-150.0,0.00014943,2]
[422555494,1779070242000,-650.81,0.00014999,2]
[422555489,1779070242000,-650.81,0.00014999,2]
[422555503,1779070242000,-650.81,0.00014999,2]
[422555472,1779070242000,-158.85009277,0.00014986,2]
[422555495,1779070242000,-650.81,0.00014999,2]
[422555515,1779070242000,-572.52063942,0.00014999,2]
[422555526,1779070242000,-419967.02616997,0.00015,2]
[422555523,1779070242000,-925.0,0.00015,5]
[422555525,1779070242000,-432190.64637166,0.00015,2]
[422555518,1779070242000,-500.0,0.00014999,2]
[422555524,1779070242000,-531.0,0.00015,5]
[422555516,1779070242000,-500.0,0.00014999,2]
[422555517,1779070242000,-254.99917806,0.00014999,2]
[422555521,1779070242000,-300.0,0.00014999,2]
[422555520,1779070242000,-306.09243083,0.00014999,2]
[422555522,1779070242000,-300.0,0.00014999,2]
[422555527,1779070242000,-673.88187942,0.00015,2]
[422555528,1779070242000,-670.4839039,0.00015,2]
[422555504,1779070242000,-650.8952118,0.00014999,2]
[422555519,1779070242000,-165.84382573,0.00014999,2]
[422555510,1779070242000,-500.0,0.00014999,2]
[422555488,1779070242000,-650.81,0.00014999,2]
[422555509,1779070242000,-448.25372383,0.00014999,2]
[422555513,1779070242000,-500.0,0.00014999,2]
[422555498,1779070242000,-650.81,0.00014999,2]
[422555497,1779070242000,-650.81,0.00014999,2]
[422555501,1779070242000,-650.81,0.00014999,2]
[422555502,1779070242000,-650.81,0.00014999,2]
[422555499,1779070242000,-650.81,0.00014999,2]
[422555496,1779070242000,-650.81,0.00014999,2]
[422555505,1779070242000,-500.0,0.00014999,2]
[422555507,1779070242000,-500.0,0.00014999,2]
[422555514,1779070242000,-500.0,0.00014999,2]
[422555508,1779070242000,-500.0,0.00014999,2]
[422555511,1779070242000,-500.0,0.00014999,2]
[422555512,1779070242000,-449.76283817,0.00014999,2]
[422555506,1779070242000,-500.0,0.00014999,2]
[422555500,1779070242000,-650.81,0.00014999,2]
[422555532,1779070243000,-671.62652613,0.00015,2]
[422555531,1779070243000,-33776.93357478,0.00015,2]
[422555544,1779070246000,-6893.68141213,0.00015,2]
[422555638,1779070316000,339.5244866,0.0003013,120]
[422555639,1779070436000,6322.91,0.00027397,120]
[422555640,1779070574000,150.76,7.469e-05,2]
[422555642,1779071341000,1000.0,0.00030135,120]
[422555663,1779071432000,-500.0,0.00014169,2]
[422555661,1779071432000,-284.31564096,0.00013969,2]
[422555656,1779071432000,-163.42,0.00013772,2]
[422555670,1779071432000,-150.0,0.00014624,2]
[422555671,1779071432000,-44894.27137339,0.00014625,2]
[422555674,1779071432000,-150.76,0.00014644,2]
[422555672,1779071432000,-8474.03535642,0.00014625,2]
[422555673,1779071432000,-2332.54117019,0.00014625,2]
[422555678,1779071432000,-401.42033,0.0001485,2]
[422555675,1779071432000,-174.998,0.00014725,2]
[422555676,1779071432000,-2170.098,0.00014725,2]
[422555679,1779071432000,-401.42033,0.0001485,2]
[422555684,1779071432000,-5000.0,0.000149,2]
[422555666,1779071432000,-166.66,0.00014219,2]
[422555677,1779071432000,-411.46409313,0.00014832,2]
[422555664,1779071432000,-525.36898811,0.00014169,3]
[422555650,1779071432000,-1009.52478158,0.00013672,2]
[422555660,1779071432000,-166.66,0.00013959,2]
[422555647,1779071432000,-464.29087844,0.00013667,2]
[422555649,1779071432000,-2259.10830153,0.00013672,2]
[422555648,1779071432000,-44.89912156,0.00013667,2]
[422555651,1779071432000,-123448.07861689,0.00013672,2]
[422555652,1779071432000,-222.28190462,0.00013672,2]
[422555683,1779071432000,-157.26114627,0.000149,2]
[422555655,1779071432000,-1200.0,0.00013771,2]
[422555654,1779071432000,-659.82,0.00013708,2]
[422555653,1779071432000,-166.66,0.00013699,2]
[422555668,1779071432000,-500.0,0.00014334,2]
[422555657,1779071432000,-215.11887611,0.00013819,2]
[422555669,1779071432000,-166.66,0.0001448,2]
[422555667,1779071432000,-1332.14,0.00014247,2]
[422555659,1779071432000,-200.0,0.00013863,2]
[422555658,1779071432000,-162.62,0.00013831,2]
[422555662,1779071432000,-2000.0,0.00014095,2]
[422555690,1779071432000,-700.0,0.0001497,2]
[422555682,1779071432000,-172.26363839,0.00014898,2]
[422555691,1779071432000,-1120.37187793,0.0001497,2]
[422555706,1779071432000,-500.0,0.00014997,2]
[422555705,1779071432000,-500.0,0.00014997,2]
[422555707,1779071432000,-500.0,0.00014997,2]
[422555711,1779071432000,-500.0,0.00014997,2]
[422555708,1779071432000,-500.0,0.00014997,2]
[422555709,1779071432000,-500.0,0.00014997,2]
[422555714,1779071432000,-500.0,0.00014997,2]
[422555713,1779071432000,-500.0,0.00014997,2]
[422555710,1779071432000,-500.0,0.00014997,2]
[422555712,1779071432000,-500.0,0.00014997,2]
[422555680,1779071432000,-401.42033,0.0001486,2]
[422555716,1779071432000,-500.0,0.00014997,2]
[422555717,1779071432000,-500.0,0.00014997,2]
[422555718,1779071432000,-500.0,0.00014997,2]
[422555719,1779071432000,-12826.69002461,0.00014998,2]
[422555704,1779071432000,-500.0,0.00014997,2]
[422555699,1779071432000,-523.5152065,0.00014997,2]
[422555715,1779071432000,-500.0,0.00014997,2]
[422555698,1779071432000,-377.27155804,0.00014997,2]
[422555681,1779071432000,-200.0,0.0001488,2]
[422555688,1779071432000,-152.0,0.00014926,2]
[422555687,1779071432000,-1049.96046494,0.000149,2]
[422555685,1779071432000,-399.19057254,0.000149,2]
[422555703,1779071432000,-500.0,0.00014997,2]
[422555689,1779071432000,-152.0,0.00014956,2]
[422555692,1779071432000,-500.0,0.00014997,2]
[422555686,1779071432000,-2024.8419521,0.000149,2]
[422555693,1779071432000,-500.0,0.00014997,2]
[422555695,1779071432000,-612.40495588,0.00014997,2]
[422555696,1779071432000,-308.79838244,0.00014997,2]
[422555694,1779071432000,-500.0,0.00014997,2]
[422555702,1779071432000,-500.0,0.00014997,2]
[422555697,1779071432000,-500.0,0.00014997,2]
[422555700,1779071432000,-510.03292361,0.00014997,2]
[422555701,1779071432000,-500.0,0.00014997,2]
[422555729,1779071438000,-752.76997313,0.00014898,2]
[422555728,1779071438000,-354.3162994,0.00014898,2]
[422555727,1779071438000,-1386.34858037,0.00014898,2]
[422555726,1779071438000,-2527.28622367,0.00014898,2]
[422555730,1779071439000,-149.87790073,0.00014898,2]
[422555731,1779071439000,-500.0,0.00014997,2]
[422555732,1779071439000,-500.0,0.00014997,2]
[422555734,1779071439000,-350.12209927,0.00014997,2]
[422555736,1779071439000,-224.81125552,0.00014997,2]
[422555735,1779071439000,-149.87790073,0.00014997,2]
[422555733,1779071439000,-500.0,0.00014997,2]
[422555738,1779071440000,-275.18874448,0.00014997,2]
[422555739,1779071441000,-96.44022526,0.00014997,2]
[422555756,1779071446000,-403.55977474,0.00014997,2]
[422555766,1779071446000,-500.0,0.00014997,2]
[422555775,1779071446000,-500.0,0.00014997,2]
[422555768,1779071446000,-500.0,0.00014997,2]
[422555769,1779071446000,-500.0,0.00014997,2]
[422555774,1779071446000,-500.0,0.00014997,2]
[422555761,1779071446000,-500.0,0.00014997,2]
[422555758,1779071446000,-500.0,0.00014997,2]
[422555762,1779071446000,-500.0,0.00014997,2]
[422555760,1779071446000,-500.0,0.00014997,2]
[422555757,1779071446000,-500.0,0.00014997,2]
[422555759,1779071446000,-500.0,0.00014997,2]
[422555755,1779071446000,-3829.30044904,0.000149,2]
[422555764,1779071446000,-500.0,0.00014997,2]
[422555770,1779071446000,-500.0,0.00014997,2]
[422555763,1779071446000,-500.0,0.00014997,2]
[422555765,1779071446000,-500.0,0.00014997,2]
[422555767,1779071446000,-500.0,0.00014997,2]
[422555786,1779071446000,-15057.69745933,0.00014998,2]
[422555785,1779071446000,-3680.2654,0.00014998,2]
[422555782,1779071446000,-35948.39348888,0.00014998,2]
[422555778,1779071446000,-500.0,0.00014997,2]
[422555780,1779071446000,-500.0,0.00014997,2]
[422555784,1779071446000,-1759.0,0.00014998,2]
[422555776,1779071446000,-500.0,0.00014997,2]
[422555781,1779071446000,-500.0,0.00014997,2]
[422555779,1779071446000,-310.46292236,0.00014997,2]
[422555777,1779071446000,-500.0,0.00014997,2]
[422555773,1779071446000,-500.0,0.00014997,2]
[422555772,1779071446000,-500.0,0.00014997,2]
[422555783,1779071446000,-3388.89304701,0.00014998,2]
[422555771,1779071446000,-500.0,0.00014997,2]
[422555868,1779071491000,151.52,9.33e-05,2]
[422555867,1779071491000,151.52,8.853e-05,2]
[422555866,1779071491000,151.52,8.377e-05,2]
[422555865,1779071491000,151.52,7.9e-05,2]
[422555863,1779071491000,151.52,6.946e-05,2]
[422555864,1779071491000,151.52,7.423e-05,2]
[422555869,1779071492000,151.52,9.807e-05,2]
[422555870,1779071920000,1106.0,0.0003013,120]
[422555872,1779072296000,151.52,7.819e-05,2]
[422555871,1779072296000,151.52,6.875e-05,2]
[422555873,1779072296000,151.52,8.763e-05,2]
[422555874,1779072297000,151.52,9.707e-05,2]
[422555875,1779072541000,1000.0,0.00030134,120]
[422555908,1779072632000,-500.0,0.00014,2]
[422555902,1779072632000,-500.0,0.00014,2]
[422555906,1779072632000,-500.0,0.00014,2]
[422555903,1779072632000,-513.18,0.00014,2]
[422555901,1779072632000,-150.0,0.00013999,2]
[422555910,1779072632000,-500.0,0.00014,2]
[422555899,1779072632000,-166.67,0.00013699,2]
[422555896,1779072632000,-2368.72,0.00013672,2]
[422555897,1779072632000,-30955.62287527,0.00013672,2]
[422555894,1779072632000,-367.55852767,0.00013672,2]
[422555893,1779072632000,-885.56582339,0.00013672,2]
[422555895,1779072632000,-1289.0,0.00013672,2]
[422555885,1779072632000,-264.71,0.00013466,2]
[422555891,1779072632000,-1200.0,0.00013671,2]
[422555890,1779072632000,-171.8,0.00013617,2]
[422555889,1779072632000,-229.73,0.00013587,2]
[422555887,1779072632000,-151.52,0.00013481,2]
[422555884,1779072632000,-950.33721705,0.00013367,2]
[422555888,1779072632000,-209.23853332,0.00013517,2]
[422555886,1779072632000,-500.0,0.00013481,2]
[422555912,1779072632000,-500.0,0.00014,2]
[422555879,1779072632000,-151.52,0.00011594,2]
[422555878,1779072632000,-151.52,0.0001065,2]
[422555882,1779072632000,-151.52,0.00012538,2]
[422555883,1779072632000,-1049.66278295,0.00013367,2]
[422555880,1779072632000,-252.29120606,0.00011715,2]
[422555881,1779072632000,-215.11887611,0.00012245,2]
[422555892,1779072632000,-2569.11077367,0.00013672,2]
[422555922,1779072632000,-500.0,0.00014,2]
[422555900,1779072632000,-418.7,0.0001373,2]
[422555918,1779072632000,-500.0,0.00014,2]
[422555914,1779072632000,-500.0,0.00014,2]
[422555972,1779072632000,-200.71016,0.0001485,2]
[422555971,1779072632000,-1888.174,0.00014808,2]
[422555968,1779072632000,-1989.45889422,0.00014708,2]
[422555970,1779072632000,-170.108,0.00014808,2]
[422555964,1779072632000,-152.0,0.0001466,2]
[422555966,1779072632000,-7141.8686,0.000147,2]
[422555969,1779072632000,-94311.4301,0.000148,2]
[422555955,1779072632000,-500.0,0.00014,2]
[422555960,1779072632000,-162.1633562,0.00014198,2]
[422555958,1779072632000,-3216.9548774,0.00014198,2]
[422555956,1779072632000,-166.67,0.00014041,2]
[422555953,1779072632000,-500.0,0.00014,2]
[422555962,1779072632000,-166.67,0.00014384,2]
[422555951,1779072632000,-373.54,0.00014,2]
[422555904,1779072632000,-250.0,0.00014,2]
[422555946,1779072632000,-500.0,0.00014,2]
[422555916,1779072632000,-500.0,0.00014,2]
[422555948,1779072632000,-500.0,0.00014,2]
[422555920,1779072632000,-500.0,0.00014,2]
[422555924,1779072632000,-500.0,0.00014,2]
[422555926,1779072632000,-500.0,0.00014,2]
[422555928,1779072632000,-500.0,0.00014,2]
[422555937,1779072632000,-500.0,0.00014,2]
[422555930,1779072632000,-500.0,0.00014,2]
[422555934,1779072632000,-500.0,0.00014,2]
[422555944,1779072632000,-500.0,0.00014,2]
[422555941,1779072632000,-500.0,0.00014,2]
[422555943,1779072632000,-500.0,0.00014,2]
[422555939,1779072632000,-500.0,0.00014,2]
[422555932,1779072632000,-500.0,0.00014,2]
[422555981,1779072633000,-1687.36829345,0.000149,2]
[422555986,1779072633000,-500.0,0.00014995,2]
[422555984,1779072633000,-171.8,0.00014978,2]
[422555980,1779072633000,-2712.7887983,0.000149,2]
[422555977,1779072633000,-642.33315414,0.000149,2]
[422555979,1779072633000,-266.12704836,0.000149,2]
[422555975,1779072633000,-200.71017,0.0001486,2]
[422555978,1779072633000,-5000.0,0.000149,2]
[422555976,1779072633000,-200.0,0.0001488,2]
[422555974,1779072633000,-502.22761757,0.00014856,2]
[422555983,1779072633000,-1989.45889417,0.00014967,2]
[422555985,1779072633000,-500.0,0.00014995,2]
[422555973,1779072633000,-200.71017,0.0001485,2]
[422555982,1779072633000,-5036.4723983,0.000149,2]
[422555990,1779072633000,-500.0,0.00014995,2]
[422555993,1779072633000,-2524.0569579,0.00014998,2]
[422555997,1779072633000,-300.0,0.00014999,2]
[422556002,1779072633000,-514.0,0.00015,5]
[422556003,1779072633000,-91760.78388248,0.00015,2]
[422555996,1779072633000,-568.64405088,0.00014999,2]
[422555998,1779072633000,-300.0,0.00015,2]
[422555999,1779072633000,-153.90305867,0.00015,2]
[422555992,1779072633000,-162.32,0.00014997,2]
[422556001,1779072633000,-275.0,0.00015,5]
[422555991,1779072633000,-500.0,0.00014997,2]
[422555994,1779072633000,-17205.9876954,0.00014998,2]
[422555995,1779072633000,-500.0,0.00014999,2]
[422555988,1779072633000,-500.0,0.00014995,2]
[422555987,1779072633000,-500.0,0.00014995,2]
[422555989,1779072633000,-500.0,0.00014995,2]
[422556000,1779072633000,-350.0,0.00015,5]
[422556005,1779072638000,-2763.33395894,0.00015,2]
[422556308,1779072643000,-1536.55402691,0.000149,2]
[422556312,1779072643000,-6766.50822803,0.00015,2]
[422556310,1779072643000,-699.9736433,0.000149,2]
[422556311,1779072643000,-346329.80529509,0.00015,2]
[422556309,1779072643000,-5074.33648641,0.000149,2]
[422556321,1779072646000,-2948.4986,0.00015,2]
[422556322,1779072646000,-1401.74345004,0.00015,2]
[422556323,1779072647000,-1157.14741264,0.00015,2]
[422556344,1779072674000,1150.0,0.00012,6]
[422556352,1779073292000,-2279.11454839,0.00013489,2]
[422556351,1779073292000,-1874.86714364,0.00013486,2]
[422556350,1779073292000,-354.10170797,0.00013389,2]
[422556349,1779073292000,-491.9166,0.00013386,2]
[422556358,1779073293000,-1258.84366415,0.00013572,2]
[422556356,1779073293000,-150.0,0.0001357,2]
[422556357,1779073293000,-300.0,0.00013571,2]
[422556355,1779073293000,-758.0,0.00013569,2]
[422556354,1779073293000,-151.0,0.00013569,2]
[422556353,1779073293000,-2382.15633585,0.00013489,2]
[422556359,1779073294000,-5000.0,0.00013572,2]
[422556360,1779073295000,-5000.0,0.00013572,2]
[422556361,1779073296000,-5000.0,0.00013572,2]
[422556363,1779073297000,-5000.0,0.00013572,2]
[422556362,1779073297000,-5000.0,0.00013572,2]
[422556364,1779073298000,-5000.0,0.00013572,2]
[422556366,1779073299000,-5000.0,0.00013572,2]
[422556365,1779073299000,-5000.0,0.00013572,2]
[422556367,1779073299000,-5000.0,0.00013572,2]
[422556369,1779073300000,-5000.0,0.00013572,2]
[422556368,1779073300000,-5000.0,0.00013572,2]
[422556371,1779073301000,-5000.0,0.00013572,2]
[422556370,1779073301000,-5000.0,0.00013572,2]
[422556373,1779073302000,-5000.0,0.00013572,2]
[422556372,1779073302000,-5000.0,0.00013572,2]
[422556375,1779073303000,-5000.0,0.00013572,2]
[422556374,1779073303000,-5000.0,0.00013572,2]
[422556376,1779073304000,-5000.0,0.00013572,2]
[422556377,1779073308000,-200.0,0.00013572,2]
[422556380,1779073310000,-200.0,0.00013572,2]
[422556379,1779073310000,-200.0,0.00013572,2]
[422556378,1779073310000,-200.0,0.00013572,2]
[422556381,1779073311000,-200.0,0.00013572,2]
[422556382,1779073311000,-200.0,0.00013572,2]
[422556384,1779073312000,-200.0,0.00013572,2]
[422556383,1779073312000,-200.0,0.00013572,2]
[422556385,1779073313000,-200.0,0.00013572,2]
[422556387,1779073313000,-200.0,0.00013572,2]
[422556386,1779073313000,-200.0,0.00013572,2]
[422556390,1779073314000,-200.0,0.00013572,2]
[422556389,1779073314000,-200.0,0.00013572,2]
[422556388,1779073314000,-200.0,0.00013572,2]
[422556393,1779073315000,-200.0,0.00013572,2]
[422556392,1779073315000,-200.0,0.00013572,2]
[422556391,1779073315000,-200.0,0.00013572,2]
[422556396,1779073316000,-200.0,0.00013572,2]
[422556395,1779073316000,-200.0,0.00013572,2]
[422556394,1779073316000,-200.0,0.00013572,2]
[422556397,1779073317000,-200.0,0.00013572,2]
[422556398,1779073317000,-200.0,0.00013572,2]
[422556400,1779073318000,-200.0,0.00013572,2]
[422556399,1779073318000,-200.0,0.00013572,2]
[422556401,1779073319000,-200.0,0.00013572,2]
[422556402,1779073324000,-200.0,0.00013571,2]
[422556404,1779073325000,-100.0,0.00013572,2]
[422556403,1779073325000,-100.0,0.00013571,2]
[422556405,1779073343000,-200.0,0.00013572,2]
[422556408,1779073344000,-200.0,0.00013572,2]
[422556407,1779073344000,-200.0,0.00013572,2]
[422556406,1779073344000,-200.0,0.00013572,2]
[422556409,1779073345000,-200.0,0.00013572,2]
[422556410,1779073345000,-200.0,0.00013572,2]
[422556411,1779073346000,-200.0,0.00013572,2]
[422556413,1779073346000,-200.0,0.00013572,2]
[422556412,1779073346000,-200.0,0.00013572,2]
[422556416,1779073347000,-200.0,0.00013572,2]
[422556415,1779073347000,-200.0,0.00013572,2]
[422556414,1779073347000,-200.0,0.00013572,2]
[422556418,1779073348000,-200.0,0.00013572,2]
[422556417,1779073348000,-200.0,0.00013572,2]
[422556419,1779073349000,-200.0,0.00013572,2]